bitfinex/quotes_SOLUSD_20250520
["timestamp","ask_amount","ask_price","bid_price","bid_amount"]
[1747725248916,12.42172551,168.23,168.21,3.39768546]
[1747725249303,20.80237741,168.25,168.21,3.39768546]
[1747725249304,12.42172551,168.22,168.21,3.39768546]
[1747725250422,12.42172551,168.22,168.19,3.39768546]
[1747725251218,5.94494976,168.21,168.19,3.39768546]
[1747725251908,5.94494976,168.21,168.2,3.39768546]
[1747725253123,21.08508941,168.26,168.2,3.39768546]
[1747725253292,18.36526191,168.25,168.2,18.64964886]
[1747725254210,12.42172551,168.24,168.2,18.64964886]
[1747725254413,12.42172551,168.22,168.19,3.39768546]
[1747725254718,12.42172551,168.22,168.2,3.39768546]
[1747725255318,5.94494976,168.21,168.2,3.39768546]
[1747725256499,5.94494976,168.21,168.19,3.39768546]
[1747725257304,12.42172551,168.22,168.19,3.39768546]
[1747725259624,5.94494976,168.21,168.19,3.39768546]
[1747725268129,5.94459636,168.22,168.19,3.39768546]
[1747725269532,5.94459636,168.22,168.2,3.39768546]
[1747725270527,5.94459636,168.22,168.21,3.39768546]
[1747725271824,5.94434478,168.23,168.21,3.39768546]
[1747725272231,5.94388968,168.24,168.21,3.39768546]
[1747725273237,5.94388968,168.24,168.22,3.39768546]
[1747725274935,27.28031832,168.26,168.23,3.39768546]
[1747725274936,5.94364109,168.25,168.23,3.39768546]
[1747725276039,18.36490867,168.26,168.23,3.39768546]
[1747725276637,18.36490867,168.26,168.24,3.39768546]
[1747725276815,12.42172551,168.25,168.24,3.39768546]
[1747725277734,12.42172551,168.25,168.2,3.39768546]
[1747725277928,5.944243,168.23,168.2,3.39768546]
[1747725280037,5.94388968,168.24,168.21,3.39768546]
[1747725280339,18.36561519,168.24,168.21,3.39768546]
[1747725280637,33.22533939,168.24,168.21,3.39768546]
[1747725280813,12.42172551,168.23,168.21,3.39768546]
[1747725281725,12.42172551,168.23,168.22,3.39768546]
[1747725282237,18.36596851,168.23,168.22,3.39768546]
[1747725283532,18.36596851,168.23,168.19,3.39768546]
[1747725284540,18.36596851,168.23,168.2,3.39768546]
[1747725286338,18.36596851,168.23,168.21,3.39768546]
[1747725287539,12.42172551,168.22,168.21,3.39768546]
[1747725287751,12.42172551,168.22,168.18,17.82]
[1747725288851,5.94494976,168.21,168.19,3.41087874]
[1747725290529,5.94494976,168.21,168.2,3.41087874]
[1747725291251,18.36667527,168.21,168.2,3.41087874]
[1747725291722,5.94494976,168.21,168.2,3.41087874]
[1747725291925,18.36667527,168.21,168.2,3.41087874]
[1747725292121,5.94494976,168.21,168.2,3.41087874]
[1747725294653,5.94459636,168.22,168.2,3.41087874]
[1747725295451,18.36632187,168.22,168.2,3.41087874]
[1747725295625,18.36632187,168.22,168.21,3.41087874]
[1747725296668,14.85884101,168.25,168.21,3.41087874]
[1747725296958,12.42172551,168.26,168.21,3.41087874]
[1747725297255,12.42172551,168.26,168.22,3.41087874]
[1747725297730,12.42172551,168.25,168.22,3.41087874]
[1747725298762,5.94388968,168.24,168.23,3.41087874]
[1747725300246,5.94329113,168.26,168.23,3.41087874]
[1747725300966,5.94282997,168.27,168.23,3.41087874]
[1747725301849,5.94212371,168.29,168.25,26.0]
[1747725302155,5.94106463,168.32,168.26,18.64964886]
[1747725302334,5.94106463,168.32,168.26,20.28874886]
[1747725302656,18.36279014,168.32,168.26,20.28874886]
[1747725303146,12.42172551,168.28,168.24,21.23087874]
[1747725304165,12.42172551,168.28,168.25,3.41087874]
[1747725304536,12.42172551,168.27,168.25,3.41087874]
[1747725304735,12.42172551,168.28,168.25,3.41087874]
[1747725305067,5.94282997,168.27,168.25,3.41087874]
[1747725306072,5.94212371,168.29,168.26,3.41087874]
[1747725307164,18.36314313,168.31,168.26,3.41087874]
[1747725307667,5.94141762,168.31,168.27,3.41087874]
[1747725309349,5.94106463,168.32,168.28,18.64964886]
[1747725309748,5.94106463,168.32,168.28,22.0605276]
[1747725310343,14.85233419,168.33,168.28,22.0605276]
[1747725310546,12.42172551,168.32,168.28,3.41087874]
[1747725311144,12.42172551,168.32,168.25,18.64964886]
[1747725311453,12.42172551,168.31,168.25,18.64964886]
[1747725311655,12.42172551,168.3,168.24,17.82]
[1747725312357,14.85233419,168.33,168.25,18.64964886]
[1747725312660,14.85233419,168.33,168.25,3.39414612]
[1747725312661,12.42172551,168.32,168.25,3.39414612]
[1747725312966,14.85233419,168.33,168.27,18.64964886]
[1747725313268,5.94035879,168.34,168.27,18.64964886]
[1747725313269,18.3620843,168.34,168.27,18.64964886]
[1747725313445,5.94035879,168.34,168.27,18.64964886]
[1747725313645,5.94035879,168.34,168.3,26.0]
[1747725314550,18.36173145,168.35,168.3,26.0]
[1747725314940,12.42172551,168.34,168.28,1.6343]
[1747725315145,12.42172551,168.31,168.27,43.82]
[1747725315340,12.42172551,168.3,168.27,43.82]
[1747725315569,12.42172551,168.3,168.28,3.39898478]
[1747725316077,12.42172551,168.31,168.28,3.39898478]
[1747725316238,12.42172551,168.32,168.28,3.39898478]
[1747725316435,5.94106463,168.32,168.28,3.39898478]
[1747725317245,18.36279014,168.32,168.28,3.39898478]
[1747725317757,20.79372622,168.32,168.27,17.82]
[1747725318775,33.21545173,168.32,168.27,17.82]
[1747725319076,18.36279014,168.32,168.27,17.82]
[1747725319258,18.36279014,168.32,168.28,26.0]
[1747725319259,5.94106463,168.32,168.28,26.0]
[1747725319651,5.94106463,168.32,168.29,18.64964886]
[1747725320746,5.94035879,168.34,168.29,18.64964886]
[1747725321571,18.3620843,168.34,168.29,18.64964886]
[1747725321769,33.21298129,168.34,168.28,26.0]
[1747725324253,5.94035879,168.34,168.29,18.64964886]
[1747725324555,18.3620843,168.34,168.29,18.64964886]
[1747725324763,12.42172551,168.32,168.28,18.64964886]
[1747725325070,12.42172551,168.32,168.28,44.64964886]
[1747725325571,5.94106463,168.32,168.28,44.64964886]
[1747725325772,5.94106463,168.32,168.28,26.0]
[1747725326167,18.36279014,168.32,168.28,26.0]
[1747725326369,5.94106463,168.32,168.28,26.0]
[1747725327778,33.21545173,168.32,168.28,26.0]
[1747725328166,5.94106463,168.32,168.28,26.0]
[1747725328875,5.94106463,168.32,168.29,3.39439208]
[1747725329275,5.94035879,168.34,168.31,26.0]
[1747725329854,18.3620843,168.34,168.31,26.0]
[1747725330052,12.42172551,168.32,168.29,3.39439208]
[1747725330269,12.42172551,168.3,168.29,3.39439208]
[1747725330580,12.42172551,168.3,168.21,8.33277533]
[1747725330877,12.42172551,168.24,168.21,8.33277533]
[1747725331059,0.28432314,168.31,168.21,8.33277533]
[1747725331060,12.42172551,168.23,168.21,8.33277533]
[1747725331573,12.42172551,168.22,168.21,8.33277533]
[1747725331951,5.944243,168.23,168.21,8.33277533]
[1747725332276,5.94395595,168.24,168.2,17.82]
[1747725333964,12.42172551,168.24,168.2,17.82]
[1747725334168,12.42172551,168.25,168.21,3.39734418]
[1747725335480,14.8577949,168.27,168.2,17.82]
[1747725335699,5.94318316,168.26,168.23,26.0]
[1747725336786,5.94282997,168.27,168.23,26.0]
[1747725336956,12.42172551,168.26,168.23,26.0]
[1747725337579,12.42172551,168.26,168.2,17.82]
[1747725337580,12.42172551,168.26,168.21,26.0]
[1747725338472,12.42172551,168.26,168.22,3.39977808]
[1747725338788,12.42172551,168.27,168.22,3.39977808]
[1747725339779,12.42172551,168.28,168.23,3.39977808]
[1747725339963,12.42172551,168.28,168.23,29.39977808]
[1747725340976,12.42172551,168.26,168.24,3.39977808]
[1747725341686,12.42172551,168.25,168.24,3.39977808]
[1747725341983,18.36526191,168.25,168.24,3.39977808]
[1747725342894,5.9435364,168.25,168.21,26.0]
[1747725343581,18.36526191,168.25,168.21,26.0]
[1747725343780,12.42172551,168.24,168.2,17.82]
[1747725343988,5.944243,168.23,168.2,26.0]
[1747725344288,5.944243,168.23,168.21,3.40212815]
[1747725345600,5.944243,168.23,168.22,3.40212815]
[1747725347199,18.36596851,168.23,168.22,3.40212815]
[1747725347382,18.36596851,168.23,168.21,3.40212815]
[1747725348599,5.944243,168.23,168.21,3.40212815]
[1747725353493,12.42172551,168.22,168.21,3.40212815]
[1747725354313,5.944243,168.23,168.21,3.40212815]
[1747725354610,5.94399771,168.24,168.21,3.40212815]
[1747725354810,5.9435364,168.25,168.21,3.40212815]
[1747725355314,12.42172551,168.23,168.21,3.40212815]
[1747725355490,12.42172551,168.23,168.2,26.0]
[1747725356214,12.42172551,168.23,168.16,38.06114886]
[1747725356512,12.42172551,168.21,168.16,45.4115]
[1747725356893,12.42172551,168.22,168.17,3.40066817]
[1747725357087,5.94494976,168.21,168.17,3.40066817]
[1747725357734,18.36667527,168.21,168.17,3.40066817]
[1747725358018,12.42172551,168.2,168.17,3.40066817]
[1747725358913,12.42172551,168.2,168.16,27.5915]
[1747725360201,5.94565669,168.19,168.16,27.5915]
[1747725360400,33.23152394,168.19,168.13,21.98]
[1747725360717,12.42172551,168.18,168.14,17.82]
[1747725360919,18.3673822,168.19,168.14,17.82]
[1747725361425,12.42172551,168.17,168.14,17.82]
[1747725361593,12.42172551,168.18,168.14,17.82]
[1747725362027,12.42172551,168.18,168.15,3.40129213]
[1747725362214,18.3680893,168.17,168.15,3.40129213]
[1747725362513,12.42172551,168.16,168.15,3.40129213]
[1747725363309,12.42172551,168.16,168.11,43.82]
[1747725364524,18.36879657,168.15,168.11,43.82]
[1747725364908,5.94707106,168.15,168.09,26.0]
[1747725365108,12.42172551,168.12,168.1,26.0]
[1747725365613,5.94707106,168.15,168.1,26.0]
[1747725365819,12.42172551,168.14,168.1,26.0]
[1747725366626,5.9477785,168.13,168.1,26.0]
[1747725367203,18.36950401,168.13,168.1,26.0]
[1747725367633,12.42172551,168.12,168.1,26.0]
[1747725367928,18.36950401,168.13,168.1,26.0]
[1747725368130,5.9477785,168.13,168.1,26.0]
[1747725368314,18.36950401,168.13,168.1,26.0]
[1747725368512,5.94749475,168.14,168.1,26.0]
[1747725368827,12.42172551,168.16,168.1,26.0]
[1747725369330,12.42172551,168.15,168.1,26.0]
[1747725370027,12.42172551,168.14,168.1,26.0]
[1747725370208,12.42172551,168.13,168.1,26.0]
[1747725370608,5.94883997,168.1,168.04,8.1396]
[1747725370912,5.94883997,168.1,168.05,26.0]
[1747725370913,12.42172551,168.09,168.05,26.0]
[1747725371115,12.42172551,168.09,168.05,17.82]
[1747725371331,33.24266542,168.1,168.04,27.5033]
[1747725371630,33.24266542,168.1,168.04,19.3233]
[1747725371817,12.42172551,168.08,168.01,18.64964886]
[1747725372024,12.42172551,168.08,168.0,120.38577533]
[1747725372025,12.42172551,168.06,168.0,38.18577533]
[1747725372217,12.42172551,168.06,168.01,17.82]
[1747725372530,5.94883997,168.1,168.05,26.0]
[1747725374226,5.94883997,168.1,168.06,26.0]
[1747725375322,5.94856756,168.11,168.05,26.0]
[1747725376338,138.2,168.12,168.09,26.0]
[1747725376536,12.42172551,168.14,168.09,26.0]
[1747725376716,12.42172551,168.13,168.09,26.0]
[1747725377034,12.42172551,168.12,168.09,26.0]
[1747725378124,12.42172551,168.12,168.08,17.84]
[1747725378331,12.42172551,168.11,168.08,17.84]
[1747725379645,5.94883997,168.1,168.08,17.84]
[1747725380443,18.37056548,168.1,168.05,43.84]
[1747725381240,5.94883997,168.1,168.05,43.84]
[1747725382242,33.24266542,168.1,168.05,43.84]
[1747725382418,12.42172551,168.09,168.05,43.84]
[1747725382619,12.42172551,168.08,168.03,43.84]
[1747725383849,50.56513979,168.1,168.0,26.60264886]
[1747725384012,12.42172551,168.05,168.0,19.4374]
[1747725384208,138.2,168.09,168.0,19.4374]
[1747725384209,12.42172551,168.06,168.01,26.0]
[1747725384427,12.42172551,168.06,168.0,19.4374]
[1747725384940,12.42172551,168.06,168.01,26.0]
[1747725385126,12.42172551,168.05,168.01,26.0]
[1747725385640,12.42172551,168.04,167.96,18.64964886]
[1747725385828,12.42172551,168.03,167.97,17.84]
[1747725386023,5.95167241,168.02,168.0,26.0]
[1747725386739,5.95167241,168.02,167.98,17.84]
[1747725386914,12.42172551,168.01,167.98,17.84]
[1747725387239,5.95167241,168.02,167.98,17.84]
[1747725388242,12.42172551,168.03,167.98,17.84]
[1747725388444,12.42172551,168.03,167.97,26.0]
[1747725388445,12.42172551,168.02,167.95,27.5686]
[1747725388617,12.42172551,168.02,167.98,17.84]
[1747725389547,12.42172551,168.04,167.98,17.84]
[1747725390120,12.42172551,168.03,167.98,17.84]
[1747725390338,5.95202666,168.01,167.98,17.84]
[1747725391533,5.95202666,168.01,167.95,27.5686]
[1747725391736,5.95202666,168.01,167.96,17.84]
[1747725391934,12.42172551,168.0,167.97,17.84]
[1747725392144,12.42172551,167.98,167.92,26.98242419]
[1747725392324,5.95344406,167.97,167.93,17.84]
[1747725392528,5.95344406,167.97,167.93,43.84]
[1747725392728,18.37516957,167.97,167.93,26.0]
[1747725392929,18.37516957,167.97,167.92,26.17277533]
[1747725393130,18.37516957,167.97,167.93,26.0]
[1747725394320,5.95344406,167.97,167.93,26.0]
[1747725394524,12.42172551,167.96,167.92,8.33277533]
[1747725395749,12.42172551,167.96,167.91,27.5682]
[1747725395953,5.95403179,167.96,167.91,26.0]
[1747725396251,18.3757573,167.96,167.91,26.0]
[1747725397356,12.42172551,167.95,167.91,26.0]
[1747725397526,12.42172551,167.96,167.91,26.0]
[1747725397728,159.03507972,167.99,167.91,26.0]
[1747725398029,12.42172551,167.98,167.91,26.0]
[1747725398448,12.42172551,167.97,167.91,26.0]
[1747725399152,159.03507972,167.99,167.93,26.0]
[1747725399343,144.15273528,167.99,167.93,26.0]
[1747725399944,156.57446079,167.99,167.93,26.0]
[1747725400332,144.15273528,167.99,167.93,26.0]
[1747725400552,12.42172551,167.98,167.93,26.0]
[1747725400935,144.15273528,167.99,167.93,26.0]
[1747725401139,144.15273528,167.99,167.95,26.0]
[1747725401456,144.15276602,167.99,167.95,43.84]
[1747725401836,156.57449153,167.99,167.95,43.84]
[1747725402257,156.57449153,167.99,167.95,17.84]
[1747725402258,12.42172551,167.98,167.95,17.84]
[1747725402551,12.42172551,167.97,167.95,17.84]
[1747725402735,12.42172551,167.96,167.89,1.5887]
[1747725402937,12.42172551,167.95,167.9,17.84]
[1747725403132,12.42172551,167.94,167.9,17.84]
[1747725403338,5.95450756,167.94,167.9,17.84]
[1747725405861,5.95450756,167.94,167.89,27.5887]
[1747725406058,5.95450756,167.94,167.89,1.5887]
[1747725406358,33.26250197,167.94,167.9,26.0]
[1747725406563,33.26250197,167.94,167.88,43.84]
[1747725407338,5.95450756,167.94,167.88,43.84]
[1747725409045,5.95450756,167.94,167.88,43.84]
[1747725409350,18.37623307,167.94,167.88,43.84]
[1747725411964,5.95450756,167.94,167.88,43.84]
[1747725412153,12.42172551,167.94,167.88,43.84]
[1747725413275,27.30746365,167.95,167.88,26.0]
[1747725413452,27.30746365,167.95,167.88,43.84]
[1747725414468,33.26161667,167.95,167.88,43.84]
[1747725414645,33.26161667,167.95,167.88,43.86]
[1747725414977,5.95415302,167.95,167.88,49.81660118]
[1747725415275,12.42172551,167.98,167.89,18.64964886]
[1747725415448,12.42172551,167.97,167.89,18.64964886]
[1747725416673,5.95379852,167.96,167.89,24.60587435]
[1747725417649,18.37552403,167.96,167.89,18.64964886]
[1747725418179,18.37552403,167.96,167.92,26.0]
[1747725418479,5.95379852,167.96,167.92,26.0]
[1747725421354,5.95344406,167.97,167.92,26.0]
[1747725422074,12.42172551,167.96,167.92,26.0]
[1747725422277,20.83705422,167.97,167.92,26.0]
[1747725422278,12.42172551,167.95,167.92,26.0]
[1747725423579,33.26250197,167.94,167.87,100.84964886]
[1747725423785,33.26250197,167.94,167.88,17.86]
[1747725424072,5.95450756,167.94,167.88,17.86]
[1747725425189,18.37623307,167.94,167.89,3.3976894]
[1747725425975,12.42172551,167.92,167.89,3.3976894]
[1747725426368,12.42172551,167.93,167.89,3.3976894]
[1747725426564,12.42172551,167.91,167.85,1.5537]
[1747725427099,12.42172551,167.88,167.82,17.86]
[1747725427269,5.95699052,167.87,167.82,17.86]
[1747725428076,5.95699052,167.87,167.83,3.40626929]
[1747725428587,33.27119235,167.87,167.83,3.40626929]
[1747725428781,18.37871603,167.87,167.83,3.40626929]
[1747725429487,18.37871603,167.87,167.84,3.40626929]
[1747725430469,5.95699052,167.87,167.84,3.40626929]
[1747725430671,5.95699052,167.87,167.85,3.40626929]
[1747725431788,5.95699052,167.87,167.82,3.40626929]
[1747725432188,12.42172551,167.86,167.82,3.40626929]
[1747725432689,18.37871603,167.87,167.82,3.40626929]
[1747725433297,18.37871603,167.87,167.83,3.40626929]
[1747725435074,18.37871603,167.87,167.82,3.40626929]
[1747725437090,33.27119235,167.87,167.82,3.40626929]
[1747725438187,12.42172551,167.84,167.82,3.40626929]
[1747725438593,12.42172551,167.83,167.82,3.40626929]
[1747725438896,12.42172551,167.83,167.79,3.40626929]
[1747725439389,138.2,167.86,167.79,3.40626929]
[1747725439390,12.42172551,167.82,167.79,3.40626929]
[1747725439778,5.95912043,167.81,167.79,3.40626929]
[1747725440603,5.95912043,167.81,167.77,3.40626929]
[1747725441593,33.27864702,167.81,167.77,3.40626929]
[1747725441985,12.42172551,167.8,167.77,3.40626929]
[1747725442302,33.27864702,167.81,167.77,3.40626929]
[1747725442678,20.85692151,167.81,167.75,17.86]
[1747725442876,33.27864702,167.81,167.75,17.86]
[1747725443190,5.95912043,167.81,167.75,17.86]
[1747725443397,5.95912043,167.81,167.76,3.40011773]
[1747725444888,5.95912043,167.81,167.76,29.40011773]
[1747725445204,5.95912043,167.81,167.76,26.0]
[1747725446807,5.95912043,167.81,167.77,26.0]
[1747725447017,5.95912043,167.81,167.75,17.86]
[1747725447601,5.95912043,167.81,167.76,26.0]
[1747725447802,5.95805529,167.84,167.78,26.0]
[1747725448399,18.3797808,167.84,167.78,26.0]
[1747725449917,5.95876534,167.82,167.78,26.0]
[1747725450081,12.42172551,167.81,167.75,26.0]
[1747725450289,12.42172551,167.8,167.75,43.86]
[1747725450491,12.42172551,167.79,167.73,1.6078]
[1747725450693,12.42172551,167.79,167.74,17.86]
[1747725451603,12.42172551,167.8,167.74,17.86]
[1747725452093,5.95983074,167.79,167.74,17.86]
[1747725452493,18.38131717,167.8,167.74,17.86]
[1747725453804,12.42172551,167.79,167.74,17.86]
[1747725454122,18.38131717,167.8,167.74,17.86]
[1747725454708,18.38091446,167.81,167.74,42.47123888]
[1747725455011,5.95918895,167.81,167.74,42.47123888]
[1747725455217,18.38091446,167.81,167.74,42.47123888]
[1747725456508,138.2,167.83,167.75,24.61078212]
[1747725456705,18.38003257,167.84,167.78,18.64964886]
[1747725456910,5.95830706,167.84,167.78,18.64964886]
[1747725460424,18.38003257,167.84,167.78,18.64964886]
[1747725461335,12.42172551,167.83,167.78,18.64964886]
[1747725461711,5.95912043,167.81,167.77,17.86]
[1747725461905,18.38084594,167.81,167.77,17.86]
[1747725462405,18.38084594,167.81,167.74,18.64964886]
[1747725462605,18.38084594,167.81,167.74,36.50964886]
[1747725462930,18.38084594,167.81,167.77,26.0]
[1747725463119,12.42172551,167.81,167.77,26.0]
[1747725463430,12.42172551,167.82,167.77,26.0]
[1747725463622,20.85319351,167.84,167.77,26.0]
[1747725463825,12.42172551,167.82,167.77,26.0]
[1747725464931,20.85319351,167.84,167.77,26.0]
[1747725465136,5.95912043,167.81,167.74,18.64964886]
[1747725465331,5.95912043,167.81,167.75,17.86]
[1747725465531,5.95912043,167.81,167.75,43.86]
[1747725465736,18.38084594,167.81,167.75,43.86]
[1747725465937,33.27864702,167.81,167.75,43.86]
[1747725467426,33.27864702,167.81,167.75,26.0]
[1747725467636,20.85692151,167.81,167.75,43.86]
[1747725468513,5.95912043,167.81,167.78,26.0]
[1747725469213,20.85388044,167.84,167.76,18.64964886]
[1747725469412,20.85388044,167.84,167.77,26.0]
[1747725469815,33.27560595,167.84,167.77,26.0]
[1747725470031,33.27560595,167.84,167.78,3.40679984]
[1747725470643,20.85388044,167.84,167.78,3.40679984]
[1747725470948,33.27560595,167.84,167.78,3.40679984]
[1747725471643,33.27560595,167.84,167.77,26.0]
[1747725475535,33.27560595,167.84,167.78,3.41417418]
[1747725477239,33.27560595,167.84,167.79,3.41417418]
[1747725478232,33.27560595,167.84,167.78,3.41417418]
[1747725479827,33.27560595,167.84,167.79,3.41417418]
[1747725480225,5.95805529,167.84,167.79,3.41417418]
[1747725480842,12.42172551,167.83,167.79,3.41417418]
[1747725481440,5.95876534,167.82,167.79,3.41417418]
[1747725481627,5.95876534,167.82,167.8,3.41417418]
[1747725482022,18.38049085,167.82,167.8,3.41417418]
[1747725483422,33.2774042,167.82,167.78,3.41417418]
[1747725483626,12.42172551,167.81,167.78,3.41417418]
[1747725484330,12.42172551,167.79,167.78,3.41417418]
[1747725485247,5.95947556,167.8,167.74,26.0]
[1747725485456,5.95947556,167.8,167.75,17.86]
[1747725486643,5.95947556,167.8,167.76,3.42191839]
[1747725488343,18.38120107,167.8,167.77,3.42191839]
[1747725489036,5.95947556,167.8,167.77,3.42191839]
[1747725489245,18.38120107,167.8,167.77,3.42191839]
[1747725490641,12.42172551,167.79,167.77,3.42191839]
[1747725490839,12.42172551,167.79,167.75,17.86]
[1747725491840,5.96018595,167.78,167.75,17.86]
[1747725492952,18.38191146,167.78,167.75,17.86]
[1747725493147,12.42172551,167.77,167.69,1.642]
[1747725493354,12.42172551,167.75,167.69,19.502]
[1747725493541,12.42172551,167.76,167.72,26.0]
[1747725493741,50.66158062,167.78,167.72,26.0]
[1747725493944,63.08330613,167.78,167.72,26.0]
[1747725494361,33.28237635,167.78,167.72,26.0]
[1747725495155,33.28237635,167.78,167.73,3.41851348]
[1747725496055,20.86065084,167.78,167.73,3.41851348]
[1747725496643,20.86065084,167.78,167.72,26.0]
[1747725496852,33.28237635,167.78,167.72,26.0]
[1747725497050,33.28237635,167.78,167.73,17.86]
[1747725497358,12.42172551,167.77,167.73,17.86]
[1747725498548,33.28237635,167.78,167.73,17.86]
[1747725498866,14.90046489,167.78,167.72,43.86]
[1747725499641,14.90046489,167.78,167.73,3.4151159]
[1747725500362,27.3221904,167.78,167.73,3.4151159]
[1747725500957,33.28237635,167.78,167.73,3.4151159]
[1747725501262,12.42172551,167.77,167.73,3.4151159]
[1747725501843,12.42172551,167.77,167.72,43.86]
[1747725502660,12.42172551,167.76,167.71,17.88]
[1747725502865,5.96125186,167.75,167.7,26.0]
[1747725503164,5.96125186,167.75,167.71,17.88]
[1747725503460,5.96054121,167.77,167.72,18.64964886]
[1747725503652,5.96054121,167.77,167.73,26.0]
[1747725503884,5.95947556,167.8,167.75,26.0]
[1747725504049,5.95947556,167.8,167.76,17.88]
[1747725506166,0.28432314,167.72,167.67,8.33277533]
[1747725506464,7.999,167.73,167.67,8.33277533]
[1747725506660,0.28432314,167.72,167.67,8.33277533]
[1747725506861,12.42172551,167.7,167.67,8.33277533]
[1747725507048,12.42172551,167.68,167.67,8.33277533]
[1747725508261,12.70604865,167.68,167.67,8.33277533]
[1747725508469,12.70604865,167.68,167.62,26.0]
[1747725508664,12.42172551,167.65,167.59,17.88]
[1747725508979,5.96409614,167.67,167.62,26.0]
[1747725509467,5.96409614,167.67,167.59,17.88]
[1747725509653,5.96409614,167.67,167.62,26.0]
[1747725513060,5.96409614,167.67,167.63,26.0]
[1747725513656,5.96376006,167.68,167.63,26.0]
[1747725514561,12.42172551,167.67,167.63,26.0]
[1747725514780,12.42172551,167.65,167.63,26.0]
[1747725515274,12.42172551,167.66,167.57,26.17853347]
[1747725515454,12.42172551,167.66,167.61,26.0]
[1747725515651,5.96480763,167.65,167.61,26.0]
[1747725518184,5.96445186,167.66,167.59,26.0]
[1747725518900,5.96445186,167.66,167.59,31.96688932]
[1747725519378,5.96445186,167.66,167.6,18.64964886]
[1747725520263,5.96409614,167.67,167.6,24.61622883]
[1747725523091,5.96374045,167.68,167.6,24.61622883]
[1747725524975,5.96347753,167.69,167.62,18.64964886]
[1747725526586,5.96347753,167.69,167.62,24.61551019]
[1747725526973,5.96347753,167.69,167.65,26.0]
[1747725531381,5.96267366,167.71,167.65,26.0]
[1747725531697,5.96241749,167.72,167.66,18.64964886]
[1747725532208,27.32628567,167.74,167.69,26.0]
[1747725532209,5.9620749,167.73,167.69,26.0]
[1747725533417,6.94805814,167.79,167.71,18.64964886]
[1747725533696,12.42172551,167.79,167.74,26.0]
[1747725533885,12.42172551,167.78,167.74,26.0]
[1747725534689,5.96054121,167.77,167.74,26.0]
[1747725536488,12.42172551,167.76,167.7,1.5889]
[1747725536808,12.42172551,167.73,167.66,6.08]
[1747725536997,12.42172551,167.72,167.67,17.88]
[1747725537191,12.42172551,167.71,167.66,17.88]
[1747725537487,12.42172551,167.71,167.66,43.88]
[1747725538107,12.42172551,167.72,167.66,43.88]
[1747725538411,5.96267366,167.71,167.66,43.88]
[1747725539908,33.29108332,167.71,167.66,26.0]
[1747725540088,33.29108332,167.71,167.66,43.88]
[1747725540592,20.86562536,167.74,167.66,43.88]
[1747725540808,12.42172551,167.72,167.66,43.88]
[1747725541198,20.86562536,167.74,167.66,43.88]
[1747725541426,20.86562536,167.74,167.69,26.0]
[1747725541909,5.96160724,167.74,167.69,26.0]
[1747725542285,144.16130996,167.75,167.69,26.0]
[1747725542499,14.89922223,167.8,167.7,24.6123261]
[1747725542707,20.85869779,167.8,167.73,26.0]
[1747725542901,20.85869779,167.8,167.74,17.88]
[1747725543514,5.95947556,167.8,167.74,17.88]
[1747725544605,18.38120107,167.8,167.74,17.88]
[1747725544806,12.42172551,167.79,167.74,43.88]
[1747725545808,33.27988998,167.8,167.74,43.88]
[1747725547008,20.85816447,167.8,167.74,43.88]
[1747725548411,33.27988998,167.8,167.74,43.88]
[1747725548927,20.85816447,167.8,167.74,43.88]
[1747725549098,5.95947556,167.8,167.75,18.64964886]
[1747725551107,5.95841029,167.83,167.76,0.14216157]
[1747725551313,5.95841029,167.83,167.76,0.28432314]
[1747725551491,5.95841029,167.83,167.76,6.41632314]
[1747725552487,5.95841029,167.83,167.76,12.37710277]
[1747725553418,5.95841029,167.83,167.78,18.64964886]
[1747725554818,36.06805688,167.9,167.79,0.28432314]
[1747725554819,12.42172551,167.88,167.79,0.28432314]
[1747725555117,12.42172551,167.86,167.8,17.86]
[1747725555311,20.84708863,167.89,167.8,17.86]
[1747725555312,12.42172551,167.85,167.8,17.86]
[1747725556454,12.42172551,167.82,167.75,26.0]
[1747725556715,12.42172551,167.82,167.77,17.86]
[1747725557096,20.85319351,167.84,167.77,17.86]
[1747725557097,12.42172551,167.83,167.77,17.86]
[1747725558199,5.95876534,167.82,167.77,17.86]
[1747725559302,12.42172551,167.83,167.77,17.86]
[1747725559915,14.89513822,167.84,167.77,17.86]
[1747725560105,12.42172551,167.83,167.77,17.86]